bitfinex/quotes_SOLUSD_20240930
["timestamp","ask_amount","ask_price","bid_price","bid_amount"]
[1727689507962,6.4017,156.21,156.16,16.3648]
[1727689508456,24.027864,156.26,156.17,1.28053697]
[1727689508635,6.4008,156.23,156.16,16.3648]
[1727689509032,6.4012,156.22,156.16,16.3648]
[1727689509853,24.027864,156.26,156.16,16.3648]
[1727689510061,6.4013,156.22,156.17,1.28042202]
[1727689510239,6.4013,156.22,156.16,16.3648]
[1727689510636,6.4008,156.23,156.16,16.3648]
[1727689510827,0.12549,156.26,156.17,27.54244873]
[1727689511243,6.4,156.25,156.17,27.54244873]
[1727689513367,6.4,156.25,156.17,7.54244873]
[1727689514431,6.4,156.25,156.17,6.2621]
[1727689514943,6.4,156.25,156.18,1.28017946]
[1727689517365,6.3996,156.26,156.19,23.776884]
[1727689517535,6.3996,156.26,156.2,1.28002334]
[1727689517730,0.8063382,156.27,156.2,1.28002334]
[1727689517960,0.8063382,156.27,156.2,21.28002334]
[1727689518254,0.8063382,156.27,156.21,15.7962]
[1727689518438,0.8063382,156.27,156.22,1.27987342]
[1727689519263,0.8063382,156.27,156.22,21.27987342]
[1727689519846,0.8063382,156.27,156.23,30.185164]
[1727689521164,0.8063382,156.27,156.23,29.934184]
[1727689521669,0.8063382,156.27,156.24,20.0]
[1727689522160,0.8063382,156.27,156.21,15.7962]
[1727689522369,7.2055382,156.27,156.22,20.0]
[1727689523756,6.3996,156.26,156.22,20.0]
[1727689524558,7.2055382,156.27,156.22,20.0]
[1727689528369,0.8063382,156.27,156.22,20.0]
[1727689528660,7.2055382,156.27,156.22,20.0]
[1727689529939,0.8063382,156.27,156.23,1.27993934]
[1727689531543,0.8063382,156.27,156.24,34.09025369]
[1727689531765,0.8063382,156.27,156.25,1.27961458]
[1727689532742,0.8063382,156.27,156.24,34.09025369]
[1727689533067,0.8063382,156.27,156.24,44.027864]
[1727689533562,0.8063382,156.27,155.06,0.17233768]
[1727689533563,0.8063382,156.27,156.16,26.82926969]
[1727689533866,6.3996,156.26,156.16,26.82926969]
[1727689534054,7.2056382,156.27,156.18,10.31336969]
[1727689534253,7.2056382,156.27,156.16,16.5159]
[1727689534254,0.8063382,156.27,156.2,10.31336969]
[1727689534442,0.8063382,156.27,156.21,1.27990356]
[1727689534872,0.8063382,156.27,156.21,20.0]
[1727689535658,0.8063382,156.27,156.19,20.25098]
[1727689535973,0.8063382,156.27,156.2,23.776884]
[1727689536146,6.3996,156.26,156.19,20.25098]
[1727689537252,0.8063382,156.27,156.16,16.5159]
[1727689537253,16.7911382,156.27,156.16,16.5159]
[1727689537452,6.4,156.25,156.16,16.5159]
[1727689537861,16.7911382,156.27,156.16,16.5159]
[1727689538062,30.234074,156.26,156.16,16.5159]
[1727689538453,30.234074,156.26,156.17,20.0]
[1727689538954,30.234074,156.26,156.16,16.5159]
[1727689539158,6.4008,156.23,156.16,16.5159]
[1727689539372,0.12549,156.25,156.11,15.2606]
[1727689539673,6.4017,156.21,156.12,30.0]
[1727689539870,0.12549,156.25,156.12,30.0]
[1727689540073,0.12549,156.23,156.11,15.2606]
[1727689540278,6.4025,156.19,156.11,15.2606]
[1727689541156,6.4021,156.2,156.11,15.2606]
[1727689541657,6.4021,156.2,156.12,20.0]
[1727689542954,6.4026,156.19,156.12,20.0]
[1727689544351,6.402,156.2,156.12,20.0]
[1727689544874,6.4017,156.21,156.14,20.0]
[1727689545480,6.4017,156.21,156.12,44.027864]
[1727689547971,6.4012,156.22,156.14,23.776884]
[1727689548177,6.4012,156.22,156.15,1.28045109]
[1727689549177,6.4012,156.22,156.16,1.28046345]
[1727689549870,6.4012,156.22,156.14,36.12422812]
[1727689550273,6.4012,156.22,156.15,1.28046392]
[1727689550979,23.902374,156.24,156.15,1.28046392]
[1727689551471,6.4013,156.22,156.15,1.28046392]
[1727689553406,16.12639,156.25,156.15,1.28046392]
[1727689553569,6.4008,156.23,156.15,1.28046392]
[1727689555685,6.4008,156.23,156.16,10.32489418]
[1727689556185,6.4008,156.23,156.17,1.280397]
[1727689556885,6.4004,156.24,156.17,1.280397]
[1727689558582,6.4004,156.24,156.16,10.32489418]
[1727689560175,6.4008,156.23,156.16,10.32489418]
[1727689560877,6.4013,156.22,156.16,10.32489418]
[1727689561078,6.4013,156.22,156.14,10.32489418]
[1727689561264,6.4013,156.22,156.15,20.0]
[1727689561878,6.4013,156.22,156.16,10.32489418]
[1727689562560,6.4009,156.23,156.16,10.32489418]
[1727689562762,6.4009,156.23,156.17,1.2804441]
[1727689564596,6.4009,156.23,156.16,10.32489418]
[1727689564986,6.4009,156.23,156.17,1.28035926]
[1727689566070,6.4009,156.23,156.16,10.32489418]
[1727689568690,6.4013,156.22,156.16,10.32489418]
[1727689569987,16.5657,156.21,156.16,10.32489418]
[1727689570986,6.4024,156.19,156.13,4.07592679]
[1727689571299,6.4024,156.19,156.1,20.0]
[1727689571300,6.4024,156.19,156.12,20.0]
[1727689571475,6.4024,156.19,156.13,10.32489418]
[1727689571786,6.4026,156.19,156.14,20.0]
[1727689572578,12.5899,156.2,156.14,20.0]
[1727689578496,6.4025,156.19,156.14,24.08317032]
[1727689578792,6.4032,156.18,156.14,4.08317032]
[1727689578995,6.4033,156.17,156.14,4.08317032]
[1727689579696,6.4028,156.18,156.14,4.08317032]
[1727689580106,6.1878,156.2,156.15,11.60574133]
[1727689580402,6.1878,156.2,156.15,10.32489418]
[1727689581609,6.1878,156.2,156.14,4.08317032]
[1727689581610,6.403,156.18,156.14,4.08317032]
[1727689582600,6.4025,156.19,156.14,4.08317032]
[1727689585930,0.12549,156.19,156.14,4.08317032]
[1727689586507,6.1878,156.2,156.14,4.08317032]
[1727689587986,6.4029,156.18,156.14,4.08317032]
[1727689589012,6.1878,156.2,156.15,10.32489418]
[1727689589314,12.59,156.2,156.15,10.32489418]
[1727689589512,6.1878,156.2,156.14,4.08317032]
[1727689589689,6.1878,156.2,156.14,14.4080645]
[1727689589883,6.1878,156.2,156.14,10.32489418]
[1727689590592,6.4029,156.18,156.14,10.32489418]
[1727689591190,24.027864,156.19,156.07,15.3884]
[1727689591402,6.4042,156.15,156.1,10.32489418]
[1727689591598,6.4037,156.16,156.11,4.09043158]
[1727689591805,6.4037,156.16,156.12,14.41532576]
[1727689591995,6.4037,156.16,156.12,10.32489418]
[1727689594109,6.4033,156.17,156.14,10.32489418]
[1727689595402,15.9323,156.18,156.14,10.32489418]
[1727689595607,22.3352,156.18,156.14,10.32489418]
[1727689595994,6.4033,156.17,156.14,10.32489418]
[1727689596310,15.9323,156.18,156.14,10.32489418]
[1727689596512,15.9323,156.18,156.16,10.32489418]
[1727689602614,15.9323,156.18,156.15,10.32489418]
[1727689603794,22.3352,156.18,156.15,10.32489418]
[1727689607125,6.4041,156.15,156.1,10.32489418]
[1727689607305,6.4041,156.15,156.07,15.3884]
[1727689607508,6.4041,156.15,156.1,10.32489418]
[1727689608012,6.4041,156.15,156.07,15.3884]
[1727689608220,6.4041,156.15,156.03,12.86613426]
[1727689608221,12.7543,156.14,156.09,10.32489418]
[1727689608405,6.405,156.13,156.09,10.32489418]
[1727689609325,6.4053,156.12,156.03,21.5691]
[1727689609533,6.4053,156.12,156.07,10.32489418]
[1727689609927,16.5614,156.13,156.05,10.32489418]
[1727689610226,16.5614,156.13,156.0,6.68824389]
[1727689610227,6.4058,156.11,156.0,6.68824389]
[1727689610438,6.4063,156.1,156.04,10.32489418]
[1727689611732,6.4058,156.11,156.04,10.32489418]
[1727689612223,6.4058,156.11,156.06,10.32489418]
[1727689614408,6.4055,156.12,156.06,10.32489418]
[1727689614607,6.4055,156.12,156.08,10.32489418]
[1727689616411,16.5614,156.13,156.08,10.32489418]
[1727689616632,22.9663,156.13,156.08,10.32489418]
[1727689619438,6.4053,156.12,156.08,10.32489418]
[1727689619728,6.4053,156.12,156.06,10.32489418]
[1727689619931,16.13549,156.16,156.1,10.32489418]
[1727689619932,6.4036,156.16,156.1,10.32489418]
[1727689620110,6.4036,156.16,156.12,10.32489418]
[1727689621531,22.4773,156.17,156.12,10.32489418]
[1727689630243,6.404,156.16,156.05,16.67599]
[1727689630539,6.4037,156.16,156.11,10.32489418]
[1727689631116,24.027864,156.16,156.06,20.0]
[1727689631326,24.027864,156.16,156.08,10.32489418]
[1727689631642,6.4041,156.15,156.08,10.32489418]
[1727689632015,6.4045,156.14,156.08,10.32489418]
[1727689632214,6.4049,156.13,156.08,10.32489418]
[1727689632634,6.4041,156.15,156.1,10.32489418]
[1727689633517,16.074,156.17,156.1,10.32489418]
[1727689633723,6.4045,156.14,156.1,10.32489418]
[1727689634224,6.4049,156.13,156.08,10.32489418]
[1727689634641,6.4044,156.15,156.08,10.32489418]
[1727689635116,6.4046,156.14,156.08,10.32489418]
[1727689635518,6.4049,156.13,156.08,10.32489418]
[1727689635920,6.4045,156.14,156.08,10.32489418]
[1727689637433,0.12549,156.15,156.08,10.32489418]
[1727689637639,6.405,156.13,156.08,10.32489418]
[1727689638340,6.4053,156.12,156.08,10.32489418]
[1727689638528,6.4505,156.13,156.01,16.3631]
[1727689638743,6.4058,156.11,156.05,10.32489418]
[1727689639249,6.4069,156.09,156.02,10.32489418]
[1727689640530,6.4069,156.09,156.03,20.0]
[1727689640727,6.4062,156.1,156.04,10.32489418]
[1727689640949,6.4062,156.1,156.04,11.60646317]
[1727689641458,22.002,156.12,156.06,10.32489418]
[1727689641749,22.0017,156.12,156.06,10.32489418]
[1727689641929,15.5964,156.12,156.06,10.32489418]
[1727689642954,15.5964,156.12,156.08,10.32489418]
[1727689643647,15.5964,156.12,156.06,10.32489418]
[1727689643832,22.0017,156.12,156.06,10.32489418]
[1727689645051,6.4058,156.11,156.06,10.32489418]
[1727689646951,6.4058,156.11,156.03,20.0]
[1727689647333,6.4058,156.11,156.04,10.32489418]
[1727689647655,6.4062,156.1,156.04,10.32489418]
[1727689649038,6.4058,156.11,156.04,11.60645826]
[1727689649230,6.4058,156.11,156.04,10.32489418]
[1727689650258,43.902374,156.11,156.04,10.32489418]
[1727689650463,23.902374,156.11,156.04,10.32489418]
[1727689650750,6.4066,156.09,156.04,10.32489418]
[1727689652047,6.4069,156.08,156.02,10.32489418]
[1727689652226,6.4069,156.08,156.03,20.0]
[1727689652746,6.4069,156.08,155.99,24.027864]
[1727689652747,6.4069,156.08,156.0,20.0]
[1727689652953,6.4069,156.08,156.02,10.32489418]
[1727689653330,6.4073,156.07,156.02,10.32489418]
[1727689653532,23.902374,156.09,156.02,10.32489418]
[1727689653748,6.407,156.08,156.02,10.32489418]
[1727689654338,6.4066,156.09,156.02,10.32489418]
[1727689656460,6.4066,156.09,156.0,20.0]
[1727689656639,6.4066,156.09,156.03,10.32489418]
[1727689657257,6.407,156.08,156.03,10.32489418]
[1727689657438,6.4078,156.06,156.0,20.0]
[1727689657636,6.4082,156.05,155.96,6.4203]
[1727689657950,22.8928,156.07,155.99,10.32489418]
[1727689658150,6.4081,156.06,155.99,10.32489418]
[1727689658536,6.4081,156.06,155.96,6.4203]
[1727689658737,6.4081,156.06,155.99,10.32489418]
[1727689658938,6.4081,156.06,156.0,20.0]
[1727689659448,6.4082,156.05,156.0,20.0]
[1727689659846,6.4082,156.05,155.99,10.32489418]
[1727689660558,6.4083,156.05,155.99,10.32489418]
[1727689661064,6.4083,156.05,156.0,10.32489418]
[1727689661763,0.12549,156.06,156.0,10.32489418]
[1727689661967,29.3005,156.07,155.94,16.49367228]
[1727689661968,22.8928,156.07,156.02,10.32489418]
[1727689663149,29.3002,156.07,156.02,10.32489418]
[1727689665044,22.8928,156.07,156.0,10.32489418]
[1727689665242,6.4083,156.05,156.0,10.32489418]
[1727689665837,29.3005,156.07,156.0,10.32489418]
[1727689666242,6.4078,156.06,155.97,20.0]
[1727689666445,6.4078,156.06,155.99,10.32489418]
[1727689667447,6.4082,156.05,155.99,10.32489418]
[1727689668365,6.4082,156.05,156.0,10.32489418]
[1727689669653,6.4078,156.06,156.0,10.32489418]
[1727689670245,6.4078,156.06,155.97,20.0]
[1727689670553,6.4078,156.06,155.99,10.32489418]
[1727689670750,23.902374,156.06,155.99,10.32489418]
[1727689670957,6.4086,156.04,155.99,10.32489418]
[1727689671148,6.4082,156.05,155.99,10.32489418]
[1727689672365,0.12549,156.06,155.97,20.0]
[1727689672669,0.12549,156.06,155.96,10.32489418]
[1727689672670,16.4334,156.01,155.96,10.32489418]
[1727689672866,26.4102,156.0,155.94,0.64127228]
[1727689673168,26.4102,156.0,155.94,10.96616646]
[1727689674164,20.0,156.0,155.94,10.96616646]
[1727689674470,24.027864,155.99,155.94,0.64127228]
[1727689674766,6.411,155.98,155.94,0.64127228]
[1727689675063,6.4107,155.99,155.94,0.64127228]
[1727689675267,20.0,156.0,155.94,0.64127228]
[1727689675572,26.4104,156.0,155.94,0.64127228]
[1727689676070,6.4106,155.99,155.94,0.64127228]
[1727689676445,20.0,156.0,155.95,10.32489418]
[1727689676774,28.9442,156.01,155.97,10.32489418]
[1727689676775,22.5341,156.01,155.97,10.32489418]
[1727689677847,22.5341,156.01,155.94,0.64127228]
[1727689678049,6.4108,155.99,155.94,0.64127228]
[1727689680968,26.4103,156.0,155.95,10.32489418]
[1727689681869,20.0,156.0,155.97,10.32489418]
[1727689682561,22.5341,156.01,155.97,10.32489418]
[1727689682762,16.4334,156.01,155.99,10.32489418]
[1727689682961,28.5331,156.05,155.99,10.32489418]
[1727689683276,22.1249,156.05,156.01,10.32489418]
[1727689683780,28.5332,156.05,156.01,10.32489418]
[1727689684184,22.1249,156.05,156.01,10.32489418]
[1727689684856,28.5331,156.05,156.01,10.32489418]
[1727689685260,28.5331,156.05,155.98,20.0]
[1727689685261,6.4086,156.04,155.98,20.0]
[1727689685560,6.4086,156.04,155.98,30.32489418]
[1727689687180,6.4086,156.04,155.95,21.40762605]
[1727689687394,6.4091,156.03,155.95,20.12549]
[1727689687603,6.4091,156.03,155.97,10.32489418]
[1727689688465,28.5334,156.05,155.99,10.32489418]
[1727689688958,22.1249,156.05,156.01,10.32489418]
[1727689689492,6.65039037,156.09,156.03,10.32489418]
[1727689689782,6.65039037,156.09,156.05,10.32489418]
[1727689689783,28.78549037,156.09,156.05,10.32489418]
[1727689689961,6.4069,156.08,156.05,10.32489418]
[1727689690169,6.4074,156.07,156.03,10.32489418]
[1727689690376,6.4081,156.06,156.0,10.32489418]
[1727689691172,20.0,156.08,156.04,10.32489418]
[1727689691570,22.1351,156.09,156.04,10.32489418]
[1727689691776,6.63591674,156.15,156.06,10.32489418]
[1727689691777,6.4057,156.11,156.06,10.32489418]
[1727689700796,28.1488,156.13,156.08,10.32489418]
[1727689701799,6.4053,156.12,156.08,10.32489418]
[1727689702174,16.01,156.16,156.08,10.32489418]
[1727689702398,16.01,156.16,156.03,15.5957]
[1727689702399,20.0,156.15,156.1,10.32489418]
[1727689702699,6.4048,156.14,156.1,10.32489418]
[1727689703616,6.4049,156.13,156.1,10.32489418]
[1727689705098,6.4055,156.12,156.08,10.32489418]
[1727689705512,20.0,156.16,156.08,10.32489418]
[1727689705697,6.4057,156.11,156.08,10.32489418]
[1727689706009,6.4053,156.12,156.08,10.32489418]
[1727689709612,39.913274,156.15,156.04,20.12549]
[1727689709786,6.4066,156.09,156.04,10.32489418]
[1727689710707,6.4071,156.08,156.04,10.32489418]
[1727689711492,6.4074,156.07,156.04,10.32489418]
[1727689711710,15.3566,156.11,156.0,6.1966]
[1727689711711,6.4077,156.06,156.02,10.32489418]
[1727689712814,6.4074,156.07,156.02,10.32489418]
[1727689717797,20.12549,156.1,156.03,1.28178066]
[1727689717996,6.407,156.08,156.03,1.28178066]
[1727689718916,6.407,156.08,156.02,10.32489418]
[1727689719411,6.4066,156.09,156.03,1.28167396]
[1727689719621,6.4066,156.09,156.04,10.32489418]
[1727689720405,26.4062,156.1,156.04,10.32489418]
[1727689721025,6.4057,156.11,156.06,10.32489418]
[1727689721406,6.4062,156.1,156.06,10.32489418]
[1727689721716,6.5616,156.13,156.06,10.32489418]
[1727689721921,6.4058,156.11,156.06,10.32489418]
[1727689724704,16.3097,156.15,156.1,10.32489418]
[1727689724911,22.7138,156.15,156.1,10.32489418]
[1727689725235,16.3097,156.15,156.1,10.32489418]
[1727689725532,16.1742,156.2,156.12,10.32489418]
[1727689725732,6.4033,156.17,156.12,10.32489418]
[1727689726604,6.4038,156.16,156.11,10.32489418]
[1727689726807,6.4038,156.16,156.06,44.027864]
[1727689727030,6.4041,156.15,156.09,10.32489418]
[1727689727207,6.4045,156.14,156.09,10.32489418]
[1727689727613,43.776884,156.19,156.09,10.32489418]
[1727689727833,6.4041,156.15,156.1,1.28120715]
[1727689728027,6.4041,156.15,156.09,10.32489418]
[1727689729116,6.4045,156.14,156.09,10.32489418]
[1727689730122,6.4045,156.14,156.08,10.32489418]
[1727689730630,6.4053,156.12,156.05,32.14249418]
[1727689730835,6.405,156.13,156.06,1.28140537]
[1727689731133,6.4054,156.12,156.05,32.14249418]
[1727689731327,6.4057,156.11,156.05,32.14249418]
[1727689731525,6.4053,156.12,156.05,25.47899418]
[1727689731931,6.4053,156.12,156.06,20.0]
[1727689732421,6.4049,156.13,156.07,10.32489418]
[1727689733235,6.4054,156.12,156.07,10.32489418]
[1727689733409,35.7174,156.14,156.06,20.0]
[1727689733611,20.0,156.12,156.02,20.0]
[1727689733814,6.407,156.08,156.02,10.32489418]
[1727689734329,23.902374,156.13,156.02,10.32489418]
[1727689734535,6.4066,156.09,156.02,10.32489418]
[1727689734722,6.4071,156.08,156.02,10.32489418]
[1727689735432,6.4071,156.08,156.03,20.0]
[1727689735731,6.4075,156.07,156.01,31.77189418]
[1727689735919,6.4075,156.07,156.02,20.0]
[1727689739914,6.4075,156.07,156.02,30.32489418]
[1727689741039,13.0009,156.1,156.04,10.32489418]
[1727689741238,6.5944,156.1,156.04,10.32489418]
[1727689741454,6.4066,156.09,156.04,10.32489418]
[1727689742445,6.4069,156.08,156.02,30.32489418]
[1727689742815,16.1496,156.08,155.98,20.0]
[1727689743014,23.902374,156.07,155.98,20.0]
[1727689743217,6.4086,156.04,155.97,25.55329418]
[1727689743820,6.4086,156.04,155.99,10.32489418]
[1727689744542,6.4086,156.04,155.97,15.2284]
[1727689744543,6.4077,156.07,156.01,10.32489418]
[1727689744728,22.5566,156.08,156.03,10.32489418]
[1727689745839,16.1496,156.08,156.03,10.32489418]
[1727689747628,6.5944,156.1,156.03,10.32489418]
[1727689747819,13.0006,156.1,156.03,10.32489418]
[1727689748017,6.5944,156.1,156.03,10.32489418]
[1727689748229,22.4233,156.12,156.05,10.32489418]
[1727689748520,6.4058,156.11,156.05,10.32489418]
[1727689749328,16.0177,156.12,156.05,10.32489418]
[1727689749649,6.4061,156.1,156.05,10.32489418]
[1727689752035,22.4233,156.12,156.05,10.32489418]
[1727689752244,6.4058,156.11,156.05,10.32489418]
[1727689752446,16.0177,156.12,156.05,10.32489418]
[1727689752832,22.4231,156.12,156.07,10.32489418]
[1727689755944,16.0177,156.12,156.07,10.32489418]
[1727689756135,6.4049,156.13,156.09,10.32489418]
[1727689757146,12.7424,156.14,156.09,10.32489418]
[1727689758255,6.4049,156.13,156.09,10.32489418]
[1727689761462,12.7424,156.14,156.09,10.32489418]
[1727689761840,6.4054,156.12,156.06,10.32489418]
[1727689762541,6.4058,156.11,156.05,10.32489418]
[1727689769666,43.902374,156.13,156.07,10.32489418]
[1727689769869,6.4054,156.12,156.07,10.32489418]
[1727689773371,20.0,156.13,156.07,10.32489418]
[1727689773569,6.53029,156.14,156.09,10.32489418]
[1727689773770,6.405,156.13,156.09,10.32489418]
[1727689773975,6.4054,156.12,156.09,10.32489418]
[1727689774189,6.4054,156.12,156.07,10.32489418]
[1727689775083,6.4049,156.13,156.07,10.32489418]
[1727689778762,6.4053,156.12,156.07,10.32489418]
[1727689778971,23.902374,156.14,156.07,10.32489418]
[1727689778972,20.0,156.13,156.07,10.32489418]
[1727689779871,6.4057,156.11,156.07,10.32489418]
[1727689780068,6.4067,156.09,156.04,6.0658]
[1727689780275,6.4067,156.09,156.03,20.0]
[1727689780474,6.4069,156.08,156.04,10.32489418]
[1727689780885,0.12549,156.12,156.04,10.32489418]
[1727689780886,24.027864,156.12,156.05,4.08767811]
[1727689781063,6.4066,156.09,156.04,10.32489418]
[1727689785094,0.12549,156.12,156.04,10.32489418]
[1727689785296,6.4061,156.1,156.04,10.32489418]
[1727689787405,6.4061,156.1,156.06,10.32489418]
[1727689787719,24.027864,156.12,156.06,10.32489418]
[1727689787720,6.4058,156.11,156.06,10.32489418]
[1727689787895,6.4061,156.1,156.06,10.32489418]
[1727689788393,6.4065,156.09,156.03,20.0]
[1727689788596,6.4065,156.09,156.04,10.32489418]
[1727689791407,6.4062,156.1,156.04,10.32489418]
[1727689792416,20.0,156.11,156.04,10.32489418]
[1727689792594,6.4065,156.09,156.04,10.32489418]
[1727689793730,6.4065,156.09,155.91,51.83108187]
[1727689793731,24.027864,156.08,155.98,16.5168]
[1727689794026,24.027864,156.08,155.99,10.32489418]
[1727689794027,6.4082,156.05,155.99,10.32489418]
[1727689797396,0.12549,156.06,155.99,10.32489418]
[1727689797609,6.4089,156.04,155.97,10.32489418]
[1727689798402,6.409,156.03,155.97,10.32489418]
[1727689799014,6.4086,156.04,155.97,10.32489418]
[1727689799508,0.25098,156.06,155.97,10.32489418]
[1727689799707,6.409,156.03,155.97,10.32489418]
[1727689800123,0.12549,156.03,155.97,10.32489418]
[1727689801806,6.53449,156.03,155.97,10.32489418]
[1727689802198,6.4094,156.02,155.97,10.32489418]
[1727689805310,6.4099,156.01,155.95,20.0]
[1727689805498,20.12549,156.01,155.94,0.64127228]
[1727689805698,23.902374,156.0,155.94,0.64127228]
[1727689805917,6.4113,155.98,155.94,0.64127228]
[1727689806328,20.0,155.99,155.94,0.64127228]
[1727689806630,6.4119,155.96,155.94,0.64127228]
[1727689807149,6.4111,155.98,155.94,0.64127228]
[1727689807707,40.223574,156.0,155.94,10.96616646]
[1727689807928,30.312674,156.0,155.94,10.96616646]
[1727689808229,6.4108,155.99,155.94,10.96616646]
[1727689815329,24.027864,156.01,155.94,10.96616646]
[1727689815555,20.0,156.0,155.94,10.96616646]
[1727689815833,20.0,156.0,155.94,7.05387228]
[1727689816336,6.4113,155.98,155.94,0.64127228]
[1727689817642,6.4113,155.98,155.94,7.05387228]
[1727689818934,20.0,156.0,155.94,7.05387228]
[1727689819136,6.4107,155.99,155.94,7.05387228]
[1727689821343,20.0,156.0,155.94,7.05387228]
[1727689821649,20.0,156.0,155.94,0.64127228]
[1727689821650,6.4115,155.97,155.94,0.64127228]
[1727689821829,6.4119,155.96,155.94,0.64127228]
[1727689822033,0.12549,155.98,155.94,0.64127228]
[1727689822246,20.12549,155.97,155.94,0.64127228]
[1727689823031,44.027864,155.98,155.94,0.64127228]
[1727689823230,6.4119,155.96,155.94,0.64127228]
[1727689823833,26.4111,155.98,155.94,0.64127228]
[1727689824233,6.4115,155.97,155.94,0.64127228]
[1727689826552,6.4111,155.98,155.94,0.64127228]
[1727689826933,6.4111,155.98,155.94,7.05387228]
[1727689827134,6.4106,156.0,155.95,6.4121]
[1727689827550,6.4107,155.99,155.94,7.05387228]
[1727689827858,6.4099,156.01,155.96,6.4118]
[1727689828055,26.4106,156.0,155.94,17.37876646]
[1727689828551,35.695,156.03,155.94,17.37876646]
[1727689828552,20.0,156.02,155.94,17.37876646]
[1727689828757,6.4108,155.99,155.94,17.37876646]
[1727689829653,6.4108,155.99,155.94,7.05387228]
[1727689831455,6.411,155.98,155.94,0.64127228]
[1727689834039,6.4107,155.99,155.94,7.05387228]
[1727689834556,6.4103,156.0,155.95,6.4121]
[1727689834757,6.4103,156.0,155.95,10.32489418]
[1727689834758,20.0,156.0,155.95,10.32489418]
[1727689835055,6.4107,155.99,155.95,10.32489418]
[1727689838461,6.4107,155.99,155.94,7.05387228]
[1727689839934,6.4111,155.98,155.94,0.64127228]
[1727689841353,6.4123,155.95,155.94,0.64127228]
[1727689842336,50.314674,155.95,155.94,0.64127228]
[1727689842843,26.4123,155.95,155.94,0.64127228]
[1727689844755,20.0,155.95,155.94,0.64127228]
[1727689844966,6.4119,155.96,155.94,0.64127228]
[1727689845137,20.0,155.97,155.94,0.64127228]
[1727689845337,16.1548,156.02,155.94,7.05387228]
[1727689845565,6.4107,155.99,155.94,0.64127228]
[1727689847665,6.4111,155.98,155.94,0.64127228]
[1727689849562,6.4115,155.97,155.94,0.64127228]
[1727689849748,20.0,156.0,155.94,0.64127228]
[1727689850072,6.4119,155.96,155.94,0.64127228]
[1727689855667,6.4123,155.95,155.94,0.64127228]
[1727689859759,50.189184,155.95,155.94,0.64127228]
[1727689860075,50.314674,155.95,155.94,0.64127228]
[1727689860676,50.440164,155.95,155.94,0.64127228]
[1727689861477,50.314674,155.95,155.94,0.64127228]
[1727689861880,50.440164,155.95,155.94,0.64127228]
[1727689862385,69.720164,155.95,155.94,0.64127228]
[1727689864770,77.6816541,155.95,155.94,0.64127228]
[1727689864962,77.6816541,155.95,155.94,7.228e-05]
[1727689865166,6.4156,155.87,155.83,16.1929]
[1727689865557,6.416,155.86,155.83,16.1929]
[1727689866370,6.416,155.86,155.8,6.1011]
[1727689866688,6.416,155.86,155.81,30.32489418]
[1727689866876,6.416,155.86,155.81,36.74259418]
[1727689868286,0.12549,155.9,155.81,36.74259418]
[1727689868287,6.4157,155.87,155.82,6.4176]
[1727689868583,6.4157,155.87,155.82,16.74249418]
[1727689869592,6.4161,155.86,155.81,36.74259418]
[1727689869882,6.4161,155.86,155.8,6.1011]
[1727689869883,20.25098,155.86,155.77,13.06067326]
[1727689870069,6.4176,155.82,155.77,6.4196]
[1727689870267,6.4181,155.81,155.76,16.74489418]
[1727689870469,23.776884,155.83,155.73,1.0]
[1727689870677,23.776884,155.83,155.76,10.32489418]
[1727689870883,23.776884,155.83,155.73,1.0]
[1727689870884,6.419,155.79,155.74,6.4205]
[1727689871067,6.4194,155.78,155.73,17.74619418]
[1727689871886,0.12549,155.8,155.73,17.74619418]
[1727689872186,0.12549,155.83,155.77,10.32489418]
[1727689872386,6.4157,155.87,155.81,16.74259418]
[1727689872564,6.4157,155.87,155.83,10.32489418]
[1727689872774,6.4157,155.87,155.82,16.74249418]
[1727689873080,6.63732884,155.88,155.82,16.74249418]
[1727689873286,6.4153,155.88,155.83,6.4172]
[1727689873464,6.4153,155.88,155.82,10.32489418]
[1727689873664,20.0,155.87,155.82,6.4175]
[1727689874183,22.4637,155.9,155.84,6.4167]